bitfinex/quotes_SOLUSD_20250129
["timestamp","ask_amount","ask_price","bid_price","bid_amount"]
[1738181181356,24.278844,230.36,230.18,4.3743]
[1738181181546,0.37647,230.27,230.18,0.03]
[1738181181744,0.12549,230.26,230.18,0.03]
[1738181182136,1.12549,230.26,230.18,0.03]
[1738181182327,20.0,230.16,230.01,34.71404046]
[1738181182531,20.0,230.16,229.99,0.65186655]
[1738181182532,34.71404046,230.07,229.99,4.3479]
[1738181182743,34.71404046,230.05,229.96,10.9299]
[1738181182951,34.71404046,230.05,229.95,34.71404046]
[1738181183256,34.71404046,230.01,229.94,0.03]
[1738181183459,34.71404046,230.03,229.94,0.03]
[1738181183625,20.0,230.02,229.94,0.03]
[1738181183830,34.71404046,229.99,229.94,0.03]
[1738181184057,20.37647,229.95,229.94,0.03]
[1738181184371,34.71404046,229.95,229.94,0.03]
[1738181184541,35.14884046,229.95,229.94,0.03]
[1738181184931,0.25098,229.86,229.77,0.03]
[1738181185154,34.71404046,229.83,229.77,0.03]
[1738181185341,34.71404046,229.88,229.78,34.71404046]
[1738181185531,34.71404046,229.83,229.77,0.03]
[1738181185736,0.25098,229.8,229.77,0.03]
[1738181185959,34.71404046,229.81,229.77,0.03]
[1738181186172,34.71404046,229.83,229.77,0.03]
[1738181186678,34.71404046,229.85,229.77,0.03]
[1738181186843,0.435,229.88,229.77,0.03]
[1738181186844,34.71404046,229.83,229.77,0.03]
[1738181187046,34.71404046,229.9,229.81,34.71404046]
[1738181187260,34.71404046,229.9,229.77,0.03]
[1738181187261,34.71404046,229.92,229.84,34.71404046]
[1738181187435,34.71404046,229.9,229.8,34.71404046]
[1738181187764,34.71404046,229.82,229.77,0.03]
[1738181187934,34.71404046,229.84,229.77,0.03]
[1738181188368,34.71404046,229.86,229.77,39.09604046]
[1738181188539,34.71404046,229.92,229.81,34.71404046]
[1738181188943,34.71404046,229.94,229.85,34.71404046]
[1738181189156,34.71404046,229.96,229.86,0.65249058]
[1738181189361,34.71404046,229.94,229.83,34.71404046]
[1738181189565,34.71404046,229.94,229.81,0.65252163]
[1738181189566,34.71404046,229.9,229.79,34.71404046]
[1738181190083,34.71404046,229.84,229.77,0.03]
[1738181190249,34.71404046,229.8,229.77,0.03]
[1738181190574,34.71404046,229.83,229.77,0.03]
[1738181190869,34.71404046,229.85,229.77,0.03]
[1738181191185,34.71404046,229.95,229.83,34.71404046]
[1738181191341,0.4348,229.98,229.88,34.71404046]
[1738181191546,34.71404046,229.99,229.9,34.71404046]
[1738181191765,34.71404046,230.05,229.94,34.71404046]
[1738181191957,34.71404046,230.05,229.91,0.65239645]
[1738181191958,34.71404046,230.01,229.86,0.65224236]
[1738181192253,20.0,230.0,229.84,6.3306]
[1738181192447,2.4346,230.06,229.87,20.0]
[1738181192448,0.4346,230.06,229.87,20.0]
[1738181192745,35.71404046,230.16,229.93,23.776884]
[1738181192746,0.4345,230.1,229.93,23.776884]
[1738181192955,0.4345,230.1,229.89,4.3499]
[1738181192956,0.50196,230.01,229.89,4.3499]
[1738181193156,34.71404046,229.91,229.82,34.71404046]
[1738181193456,34.71404046,229.89,229.8,34.71404046]
[1738181193659,34.71404046,229.94,229.84,34.71404046]
[1738181193859,34.71404046,229.88,229.79,34.71404046]
[1738181194182,2.0,229.98,229.77,0.03]
[1738181194183,0.37647,229.86,229.77,0.03]
[1738181194479,6.3504,229.99,229.55,4.3563]
[1738181194480,0.50196,229.75,229.55,4.3563]
[1738181194683,0.93726,229.71,229.56,0.65326988]
[1738181194865,0.4353,229.71,229.57,0.65333871]
[1738181195060,0.4353,229.71,229.58,34.71404046]
[1738181195061,34.71404046,229.68,229.58,34.71404046]
[1738181195270,34.71404046,229.61,229.53,6.3074]
[1738181195767,34.71404046,229.61,229.46,2.18343607]
[1738181195768,34.71404046,229.59,229.48,34.71404046]
[1738181196158,0.50196,229.63,229.43,0.65356973]
[1738181196159,34.71404046,229.53,229.44,34.71404046]
[1738181196792,34.71404046,229.57,229.48,34.71404046]
[1738181197075,34.71404046,229.65,229.58,0.03]
[1738181197276,1.0,229.73,229.58,0.03]
[1738181197277,34.71404046,229.61,229.58,0.03]
[1738181197584,1.0,229.72,229.58,0.03]
[1738181197883,0.50196,229.71,229.58,0.03]
[1738181198064,1.74938956,229.82,229.58,0.03]
[1738181198065,1.0878,229.81,229.58,0.03]
[1738181198271,0.435,229.86,229.61,1.0]
[1738181198468,0.435,229.86,229.67,20.0]
[1738181198785,0.37647,229.79,229.7,39.06744046]
[1738181198953,34.71404046,229.71,229.59,0.65300457]
[1738181199158,34.71404046,229.62,229.58,0.03]
[1738181199356,1.0,229.81,229.58,4.3855]
[1738181199564,0.4351,229.82,229.59,24.42995135]
[1738181199763,0.50196,229.77,229.59,0.65306735]
[1738181199952,0.50196,229.71,229.58,0.03]
[1738181200489,34.71404046,229.6,229.58,0.03]
[1738181200862,34.71404046,229.62,229.58,0.03]
[1738181201180,34.71404046,229.6,229.58,0.03]
[1738181201364,20.0,229.65,229.58,0.03]
[1738181201565,34.71404046,229.62,229.58,0.03]
[1738181201763,20.0,229.65,229.58,0.03]
[1738181201957,34.71404046,229.64,229.58,0.03]
[1738181202165,34.71404046,229.68,229.59,34.71404046]
[1738181202384,34.71404046,229.7,229.61,34.71404046]
[1738181202591,34.71404046,229.7,229.6,0.65321248]
[1738181202592,34.71404046,229.76,229.65,34.71404046]
[1738181202758,23.04439424,229.84,229.7,34.71404046]
[1738181202759,34.71404046,229.8,229.7,34.71404046]
[1738181202960,0.4351,229.83,229.65,4.3543]
[1738181202961,34.71404046,229.73,229.65,4.3543]
[1738181203267,34.71404046,229.67,229.58,0.03]
[1738181203476,34.71404046,229.67,229.58,34.74404046]
[1738181203857,34.71404046,229.67,229.59,0.65327857]
[1738181204067,34.71404046,229.79,229.66,34.71404046]
[1738181204270,34.71404046,229.79,229.68,34.71404046]
[1738181204581,34.71404046,229.79,229.7,34.71404046]
[1738181204971,0.063,229.94,229.71,0.65298774]
[1738181205279,0.063,229.94,229.79,20.0]
[1738181205458,0.063,229.94,229.8,0.65245109]
[1738181205859,34.71404046,229.93,229.83,34.71404046]
[1738181206058,34.71404046,229.93,229.8,0.65245109]
[1738181206059,0.063,229.94,229.87,34.71404046]
[1738181206300,0.063,229.94,229.85,34.71404046]
[1738181206597,34.71404046,229.87,229.75,0.65256457]
[1738181206766,20.0,229.9,229.73,0.6527877]
[1738181206964,34.71404046,229.8,229.72,6.1636]
[1738181207290,34.71404046,229.82,229.73,34.71404046]
[1738181207492,34.71404046,229.8,229.72,6.1636]
[1738181207797,34.71404046,229.78,229.69,34.71404046]
[1738181207964,34.71404046,229.76,229.67,34.71404046]
[1738181208168,34.71404046,229.76,229.65,34.71404046]
[1738181208581,34.71404046,229.72,229.62,0.65316263]
[1738181208787,34.71404046,229.82,229.71,34.71404046]
[1738181208996,35.71404046,230.04,229.73,23.776884]
[1738181209301,0.37647,229.93,229.74,0.65260961]
[1738181209467,0.12549,229.92,229.77,34.71404046]
[1738181209666,34.71404046,229.81,229.72,34.71404046]
[1738181209870,34.71404046,229.79,229.71,0.03]
[1738181210093,34.71404046,229.77,229.71,0.03]
[1738181210265,34.71404046,229.79,229.71,0.03]
[1738181210467,20.0,229.7,229.58,34.74404046]
[1738181210680,34.71404046,229.64,229.58,0.03]
[1738181210889,34.71404046,229.65,229.58,0.03]
[1738181211407,0.4353,229.69,229.6,34.71404046]
[1738181211600,34.71404046,229.79,229.68,34.71404046]
[1738181211972,34.71404046,229.81,229.7,34.71404046]
[1738181212299,1.0875,229.89,229.61,1.0]
[1738181212300,34.71404046,229.85,229.74,34.71404046]
[1738181212596,0.435,229.88,229.7,34.71404046]
[1738181212597,34.71404046,229.81,229.7,34.71404046]
[1738181212770,34.71404046,229.85,229.71,0.65296544]
[1738181212969,0.4349,229.93,229.71,4.3533]
[1738181213189,0.50196,229.92,229.72,0.65276949]
[1738181213396,0.50196,229.88,229.7,0.65276702]
[1738181213901,20.0,229.89,229.66,34.71404046]
[1738181213902,34.71404046,229.76,229.66,34.71404046]
[1738181214279,34.71404046,229.74,229.64,34.71404046]
[1738181214778,34.71404046,229.76,229.66,34.71404046]
[1738181214978,0.4352,229.75,229.66,34.71404046]
[1738181215177,0.4352,229.75,229.59,34.71404046]
[1738181215391,34.71404046,229.62,229.52,35.36728614]
[1738181215607,1.5233,229.75,229.55,4.3562]
[1738181215900,1.5233,229.75,229.56,0.65330549]
[1738181216099,34.71404046,229.72,229.6,34.71404046]
[1738181216312,34.71404046,229.72,229.56,0.65330549]
[1738181216313,34.71404046,229.7,229.61,34.71404046]
[1738181216513,1.5233,229.75,229.57,34.71404046]
[1738181216514,34.71404046,229.68,229.57,34.71404046]
[1738181216717,34.71404046,229.71,229.59,34.71404046]
[1738181217013,34.71404046,229.67,229.58,0.03]
[1738181217219,34.71404046,229.69,229.59,34.71404046]
[1738181217400,34.71404046,229.67,229.58,0.03]
[1738181217801,34.71404046,229.69,229.59,34.71404046]
[1738181217997,34.71404046,229.69,229.58,5.03904113]
[1738181217998,34.71404046,229.73,229.63,34.71404046]
[1738181218517,34.71404046,229.65,229.58,0.03]
[1738181218822,3.6996,229.74,229.58,0.03]
[1738181219028,5.6996,229.74,229.58,0.03]
[1738181219188,20.0,229.72,229.58,0.03]
[1738181219391,1.5233,229.74,229.58,0.03]
[1738181219612,0.4352,229.74,229.58,0.03]
[1738181219815,0.4352,229.74,229.65,34.71404046]
[1738181220018,34.71404046,229.66,229.58,0.03]
[1738181220187,20.0,229.56,229.45,0.65352895]
[1738181220517,34.71404046,229.55,229.44,34.71404046]
[1738181220715,34.71404046,229.6,229.44,0.65361561]
[1738181220908,34.71404046,229.66,229.58,0.03]
[1738181221111,34.71404046,229.68,229.58,0.03]
[1738181221301,0.4352,229.73,229.63,34.71404046]
[1738181221492,34.71404046,229.82,229.71,34.71404046]
[1738181221692,34.71404046,229.82,229.67,6.1261]
[1738181221693,34.71404046,229.83,229.73,34.71404046]
[1738181221922,34.71404046,229.92,229.68,0.65295018]
[1738181221923,1.0874,229.89,229.68,0.65295018]
[1738181222091,0.4349,229.91,229.7,20.0]
[1738181222292,0.4349,229.91,229.72,1.0]
[1738181222516,0.4349,229.91,229.73,0.65265165]
[1738181222701,0.4349,229.91,229.68,0.65265165]
[1738181223024,34.71404046,229.88,229.79,34.71404046]
[1738181223192,0.063,229.94,229.87,34.71404046]
[1738181223624,0.063,229.94,229.92,34.71404046]
[1738181223930,1.063,230.14,229.93,0.65231269]
[1738181223931,0.063,230.14,229.93,0.65231269]
[1738181224138,0.4345,230.13,229.96,1.0]
[1738181224314,0.063,230.14,229.97,24.42888977]
[1738181224496,0.4345,230.13,229.97,0.65200577]
[1738181224691,0.063,230.14,229.97,1.0]
[1738181225014,0.063,230.14,230.13,34.71404046]
[1738181225204,0.063,230.14,230.13,35.36568832]
[1738181225399,0.063,230.17,230.15,1.0]
[1738181225617,34.77704046,230.33,230.21,23.776884]
[1738181225618,0.063,230.33,230.21,23.776884]
[1738181225823,0.063,230.33,230.32,34.71404046]
[1738181226628,26.62502062,230.38,230.33,24.027864]
[1738181226924,2.28795661,230.36,230.35,34.71404046]
[1738181227124,0.063,230.44,230.38,20.0]
[1738181227327,0.063,230.44,230.39,25.67857555]
[1738181227617,0.063,230.44,230.43,58.49092446]
[1738181227818,0.063,230.44,230.43,59.14157432]
[1738181228127,0.063,230.44,230.43,35.36469032]
[1738181228426,1.1469,230.63,230.43,0.65064986]
[1738181228427,20.38631685,230.54,230.43,0.65064986]
[1738181228623,1.1469,230.63,230.41,34.71404046]
[1738181228624,34.71404046,230.52,230.41,34.71404046]
[1738181228927,34.71404046,230.47,230.41,5.56839797]
[1738181229233,0.50196,230.42,230.41,5.56839797]
[1738181229421,0.50196,230.42,230.41,9.797e-05]
[1738181229422,34.71404046,230.42,230.41,9.797e-05]
[1738181229902,69.42808092,230.42,230.41,9.797e-05]
[1738181230098,69.42808092,230.42,230.21,1.0]
[1738181230099,20.50196,230.38,230.21,1.0]
[1738181230306,20.50196,230.38,230.19,1.0]
[1738181230307,34.71404046,230.24,230.19,1.0]
[1738181230503,34.71404046,230.24,230.21,1.0]
[1738181230718,34.71404046,230.24,230.16,0.65154227]
[1738181230719,34.71404046,230.3,230.25,1.0]
[1738181230924,34.71404046,230.27,230.22,19.40964686]
[1738181231097,0.37647,230.29,230.22,19.40964686]
[1738181231295,0.37647,230.29,230.14,1.0]
[1738181231296,20.0,230.21,230.14,1.0]
[1738181231630,0.434,230.39,230.34,1.0]
[1738181231822,1.5183,230.5,230.39,1.0]
[1738181232134,24.278844,230.49,230.32,1.0]
[1738181232295,20.0,230.42,230.3,1.0]
[1738181232498,20.0,230.42,230.21,0.6513048]
[1738181232499,20.0,230.42,230.33,2.0]
[1738181232732,34.71404046,230.45,230.42,1.0]
[1738181232899,34.71404046,230.49,230.44,1.0]
[1738181233103,1.5183,230.5,230.38,34.71404046]
[1738181233104,20.0,230.46,230.39,1.65092596]
[1738181233298,0.4338,230.48,230.44,1.0]
[1738181233608,0.4338,230.51,230.5,1.0]
[1738181233829,0.4338,230.51,230.47,1.0]
[1738181234003,0.4337,230.54,230.53,1.0]
[1738181234204,34.71404046,230.57,230.56,1.0]
[1738181234404,34.71404046,230.57,230.46,0.65073235]
[1738181234405,34.71404046,230.57,230.47,1.0]
[1738181234628,24.278844,230.57,230.45,1.0]
[1738181234830,24.278844,230.57,230.35,0.65080614]
[1738181234831,34.71404046,230.47,230.4,1.0]
[1738181235005,34.71404046,230.43,230.4,1.0]
[1738181235334,35.14794046,230.43,230.4,1.0]
[1738181235545,34.71404046,230.5,230.44,2.0]
[1738181235704,34.71404046,230.5,230.44,1.0]
[1738181235903,20.0,230.47,230.44,1.0]
[1738181236134,34.71404046,230.52,230.46,2.0]
[1738181236332,31.5238,230.75,230.62,1.0]
[1738181236333,1.685716,230.71,230.62,1.0]
[1738181236539,34.71404046,230.71,230.62,1.0]
[1738181236742,1.5451,230.87,230.62,35.71404046]
[1738181236743,34.71404046,230.73,230.62,35.71404046]
[1738181237108,34.71404046,230.68,230.61,1.0]
[1738181237409,34.71404046,230.72,230.62,35.71404046]
[1738181237612,0.4334,230.7,230.62,36.36438923]
[1738181237825,34.71404046,230.74,230.62,35.71404046]
[1738181238130,0.4334,230.71,230.62,36.36434543]
[1738181238340,34.71404046,230.68,230.62,1.0]
[1738181238506,34.71404046,230.7,230.62,1.0]
[1738181238713,34.71404046,230.68,230.6,1.0]
[1738181238920,34.71404046,230.68,230.62,2.0]
[1738181239142,20.063,230.67,230.62,2.0]
[1738181239314,0.063,230.67,230.62,2.0]
[1738181239735,0.4966,230.63,230.6,1.0]
[1738181240448,0.063,230.63,230.62,2.0]
[1738181240750,0.063,230.67,230.66,3.0]
[1738181240925,21.27392074,231.05,230.66,3.0]
[1738181240926,0.4332,230.84,230.83,1.0]
[1738181241261,0.4331,230.86,230.83,1.0]
[1738181241536,0.4331,230.86,230.79,1.0]
[1738181241537,34.71404046,230.85,230.79,1.0]
[1738181241742,1.516,230.86,230.77,1.0]
[1738181241743,0.4331,230.86,230.82,1.0]
[1738181241917,0.4331,230.86,230.84,2.0]
[1738181242246,0.4331,230.86,230.75,1.0]
[1738181242247,34.71404046,230.85,230.75,1.0]
[1738181242477,34.71404046,230.79,230.71,1.0]
[1738181242749,20.0,230.82,230.66,0.6497984]
[1738181242750,34.71404046,230.73,230.68,1.0]
[1738181243039,34.71404046,230.71,230.62,35.71404046]
[1738181243251,20.0,230.66,230.61,1.0]
[1738181243430,0.4335,230.67,230.58,36.71404046]
[1738181243818,20.0,230.62,230.56,1.0]
[1738181244012,34.71404046,230.64,230.6,1.0]
[1738181244357,34.71404046,230.64,230.58,1.0]
[1738181244358,0.4335,230.67,230.61,34.71404046]
[1738181244638,0.4335,230.67,230.59,34.71404046]
[1738181244809,0.4335,230.67,230.61,34.71404046]
[1738181245019,0.4333,230.74,230.65,34.71404046]
[1738181245220,0.4333,230.74,230.69,34.71404046]
[1738181245525,0.4333,230.74,230.65,34.71404046]
[1738181245716,0.4333,230.74,230.67,34.71404046]
[1738181245913,37.33644046,230.88,230.72,34.71404046]
[1738181245914,0.4333,230.79,230.72,34.71404046]
[1738181246113,0.4332,230.8,230.72,34.71404046]
[1738181246528,34.71404046,230.79,230.7,34.71404046]
[1738181246743,34.71404046,230.76,230.66,34.71404046]
[1738181247357,0.4333,230.75,230.66,34.71404046]
[1738181247539,0.4333,230.75,230.67,0.65020723]
[1738181247745,34.71404046,230.82,230.72,34.71404046]
[1738181248157,34.71404046,230.82,230.67,0.65020723]
[1738181248158,34.71404046,230.84,230.74,34.71404046]
[1738181248355,0.4331,230.87,230.78,34.71404046]
[1738181248559,0.4331,230.87,230.76,34.71404046]
[1738181248560,34.71404046,230.86,230.76,34.71404046]
[1738181248852,0.4331,230.87,230.8,34.71404046]
[1738181249057,0.4331,230.87,230.78,34.71404046]
[1738181249425,34.71404046,230.86,230.76,34.71404046]
[1738181249747,0.4331,230.87,230.71,0.64991882]
[1738181249748,34.71404046,230.84,230.74,34.71404046]
[1738181249977,34.71404046,230.86,230.76,34.71404046]
[1738181250158,34.21404046,230.86,230.72,0.64995596]
[1738181250448,34.71404046,230.82,230.73,34.71404046]
[1738181250642,0.4331,230.87,230.8,34.71404046]
[1738181250839,0.4331,230.89,230.82,34.71404046]
[1738181251036,0.4331,230.89,230.8,34.71404046]
[1738181251234,1.0,231.02,230.7,1.0]
[1738181251235,1.0821,231.02,230.87,34.71404046]
[1738181251445,0.03,231.03,230.88,0.64958642]
[1738181251649,0.03,231.03,230.93,34.71404046]
[1738181251853,20.0,230.99,230.91,34.71404046]
[1738181252154,35.14684046,231.02,230.92,0.64953036]
[1738181252526,0.4628,231.03,230.89,34.71404046]
[1738181252753,0.4628,231.03,230.84,4.332]
[1738181252754,34.71404046,231.0,230.91,34.71404046]
[1738181252957,0.4628,231.03,230.95,34.71404046]
[1738181253162,0.4628,231.03,230.87,20.0]
[1738181253163,0.50196,231.02,230.88,0.64940507]
[1738181253450,35.14684046,231.01,230.92,34.71404046]
[1738181253760,35.14684046,231.01,230.93,0.64952466]
[1738181253761,0.4328,231.01,230.93,0.64952466]
[1738181254071,0.4328,231.01,230.92,34.71404046]
[1738181254253,0.03,231.03,230.98,34.71404046]
[1738181254465,0.03,231.03,230.96,34.71404046]
[1738181254658,0.03,231.03,230.88,39.04524046]
[1738181254659,0.03,231.03,230.98,34.71404046]
[1738181254831,0.03,231.03,230.91,0.12549]
[1738181254832,0.15549,231.03,230.96,34.71404046]
[1738181255032,34.71404046,231.02,230.92,34.71404046]
[1738181255351,34.71404046,230.96,230.86,34.71404046]
[1738181255554,34.71404046,230.96,230.85,0.64946155]
[1738181255555,20.0,230.87,230.81,0.64964684]
[1738181255861,0.12549,230.92,230.76,6.6067]
[1738181255862,20.0,230.85,230.76,41.32074046]
[1738181256041,20.0,230.77,230.7,34.71404046]
[1738181256243,20.0,230.77,230.65,0.65001771]
[1738181256642,64.71404046,231.0,230.65,0.65001771]
[1738181256643,1.0,230.95,230.68,0.12549]
[1738181256847,6.8446,230.97,230.7,0.12549]
[1738181257047,1.0,230.95,230.71,0.64991343]
[1738181257367,0.433,230.91,230.83,34.71404046]
[1738181257661,20.0,230.84,230.77,34.71404046]
[1738181257863,0.12549,230.82,230.71,0.64996478]
[1738181258160,0.12549,230.82,230.58,1.72268383]
[1738181258161,0.12549,230.82,230.67,23.776884]
[1738181258469,1.0,230.87,230.68,0.65003348]
[1738181258671,24.278844,230.82,230.65,0.65011441]
[1738181258851,0.37647,230.82,230.57,0.65013883]
[1738181259164,34.71404046,230.74,230.65,34.71404046]
[1738181259563,20.0,230.69,230.63,34.71404046]
[1738181259755,34.71404046,230.72,230.57,35.36417929]
[1738181259756,34.71404046,230.66,230.57,35.36417929]
[1738181259982,20.0,230.56,230.52,0.063]
[1738181260160,20.0,230.53,230.52,0.063]
[1738181260658,34.71404046,230.66,230.52,34.77704046]
[1738181260862,34.71404046,230.62,230.53,34.71404046]
[1738181261074,34.71404046,230.58,230.52,0.063]
[1738181261262,1.6568,230.69,230.52,0.063]
[1738181261461,0.25098,230.63,230.55,34.71404046]
[1738181261762,20.0,230.61,230.55,34.71404046]
[1738181262071,34.71404046,230.59,230.52,0.063]
[1738181262365,55.21600046,230.53,230.52,0.0001]
[1738181262565,0.37647,230.48,230.37,0.65072985]
[1738181262763,0.12549,230.47,230.32,6.3261]
[1738181262974,0.12549,230.41,230.29,0.65106889]
[1738181263155,0.12549,230.41,230.24,17.371295]
[1738181263355,0.12549,230.34,230.24,17.371295]
[1738181263558,0.4341,230.33,230.25,0.65137548]
[1738181263748,0.4341,230.33,230.17,35.36538036]
[1738181263749,34.71404046,230.27,230.17,35.36538036]
[1738181264154,20.0,230.24,230.17,34.71404046]
[1738181264466,20.0,230.24,230.19,34.71404046]
[1738181264667,1.5194,230.33,230.21,34.71404046]
[1738181264668,35.14814046,230.33,230.21,34.71404046]
[1738181264991,35.14814046,230.33,230.16,34.71404046]
[1738181264992,20.0,230.24,230.16,35.36551252]
[1738181265351,20.0,230.24,230.2,34.71404046]
[1738181265548,20.0,230.22,230.16,34.71404046]
[1738181266265,20.0,230.22,230.14,34.77704046]
[1738181266468,20.0,230.2,230.14,34.77704046]
[1738181266668,20.0,230.2,230.16,34.71404046]
[1738181266975,20.0,230.22,230.14,35.42874575]
[1738181267269,20.0,230.22,230.16,34.71404046]
[1738181267444,0.4342,230.28,230.19,34.71404046]
[1738181267645,20.12549,230.27,230.19,34.71404046]
[1738181267949,20.0,230.27,230.21,34.71404046]
[1738181268452,0.4342,230.3,230.21,34.71404046]
[1738181268648,35.14824046,230.3,230.19,34.71404046]
[1738181268866,0.4342,230.3,230.23,34.71404046]
[1738181269056,20.0,230.29,230.21,34.71404046]
[1738181269264,35.14814046,230.32,230.21,34.71404046]
[1738181269464,34.71404046,230.37,230.27,34.71404046]
[1738181269654,0.434,230.38,230.29,34.71404046]
[1738181269976,0.434,230.38,230.24,0.65134961]
[1738181270149,0.434,230.38,230.01,217.93083644]
[1738181270150,20.0,230.28,230.21,34.71404046]
[1738181270350,1.5191,230.38,230.23,34.71404046]
[1738181270554,2.6038,230.45,230.23,34.71404046]
[1738181270555,34.71404046,230.44,230.32,34.71404046]
[1738181270874,0.4339,230.42,230.36,34.71404046]
[1738181271081,34.71404046,230.47,230.36,34.71404046]
[1738181271256,34.71404046,230.51,230.4,34.71404046]
[1738181271454,1.5278,230.56,230.37,0.65110103]
[1738181271455,34.71404046,230.47,230.37,34.71404046]
[1738181271665,34.71404046,230.49,230.39,34.71404046]
[1738181271857,20.0,230.46,230.39,34.71404046]
[1738181272166,20.0,230.46,230.33,0.12549]
[1738181272167,0.12549,230.43,230.35,34.71404046]
[1738181272509,0.12549,230.43,230.33,0.65098249]
[1738181272510,34.71404046,230.43,230.36,0.65114329]
[1738181272660,1.5184,230.48,230.35,34.71404046]
[1738181272661,34.71404046,230.45,230.35,34.71404046]
[1738181272982,20.0,230.37,230.31,34.71404046]
[1738181273150,34.71404046,230.44,230.35,34.71404046]
[1738181273349,34.71404046,230.46,230.36,0.6511049]
[1738181273571,20.0,230.43,230.35,34.71404046]
[1738181273778,0.434,230.39,230.33,34.71404046]
[1738181273982,1.5188,230.43,230.33,34.71404046]
[1738181274154,20.0,230.41,230.33,34.71404046]
[1738181274359,20.0,230.37,230.31,34.71404046]
[1738181274876,20.0,230.39,230.31,34.71404046]
[1738181275058,20.0,230.39,230.35,34.71404046]
[1738181275256,34.71404046,230.48,230.37,34.71404046]
[1738181275460,34.71404046,230.52,230.41,34.71404046]
[1738181275779,34.71404046,230.5,230.41,34.71404046]
[1738181275965,0.12549,230.5,230.41,34.71404046]
[1738181276367,34.71404046,230.47,230.37,35.3649521]
[1738181277174,34.71404046,230.49,230.39,34.71404046]
[1738181277377,34.71404046,230.49,230.37,28.76859564]
[1738181277378,0.4338,230.51,230.45,34.71404046]
[1738181277590,35.79834046,230.55,230.49,34.71404046]
[1738181277591,0.4337,230.55,230.49,34.71404046]
[1738181277774,0.4337,230.57,230.51,34.71404046]
[1738181277979,0.4337,230.57,230.45,34.71404046]
[1738181277980,20.0,230.52,230.45,34.71404046]
[1738181278285,20.0,230.52,230.33,18.1868]
[1738181278286,20.0,230.47,230.34,0.65084738]
[1738181278462,20.0,230.47,230.26,4.3429]
[1738181278662,0.37647,230.46,230.27,0.65111515]
[1738181278865,0.12549,230.46,230.28,24.278844]
[1738181279065,0.12549,230.46,230.29,0.65103826]
[1738181279257,0.12549,230.46,230.23,6.4165]
[1738181279258,20.0,230.32,230.25,34.71404046]
[1738181279460,0.37647,230.36,230.16,35.42821616]
[1738181279461,20.0,230.28,230.21,34.71404046]
[1738181279658,34.71404046,230.31,230.23,34.71404046]
[1738181279887,1.0,230.42,230.16,39.12174046]
[1738181279888,35.14814046,230.35,230.25,34.71404046]
[1738181280088,0.4341,230.35,230.29,34.71404046]
[1738181280288,0.434,230.39,230.33,34.71404046]
[1738181280668,34.71404046,230.49,230.37,34.71404046]
[1738181280989,1.518,230.56,230.47,34.71404046]
[1738181281169,0.03,230.52,230.48,20.650764]
[1738181281368,0.03,230.52,230.51,43.776884]
[1738181281571,0.03,230.52,230.51,44.92939261]
[1738181281768,0.03,230.52,230.51,35.49007907]
[1738181281959,0.03,230.52,230.51,34.71404046]
[1738181282169,34.71404046,230.7,230.54,20.0]
[1738181282376,34.71404046,230.74,230.64,34.71404046]
[1738181282691,41.19481735,230.74,230.64,19.633771]
[1738181282889,6.48077689,230.74,230.66,34.71404046]
[1738181283093,6.48077689,230.74,230.67,24.929034]
[1738181283274,6.48077689,230.74,230.72,34.71404046]
[1738181283784,0.03,230.76,230.74,0.12549]
[1738181283990,0.03,230.76,230.74,0.64985293]
[1738181284192,0.03,230.76,230.71,2.0]
[1738181284488,0.03,230.76,230.72,0.64974906]
[1738181284691,0.03,230.76,230.68,34.71404046]
[1738181284880,0.03,230.76,230.69,0.65016667]
[1738181285079,0.03,230.76,230.75,58.99288446]
[1738181285291,0.03,230.86,230.75,58.99288446]
[1738181285292,0.03,230.86,230.75,59.99288446]
[1738181285585,0.03,230.86,230.85,34.71404046]
[1738181285792,0.03,230.86,230.83,34.71404046]
[1738181285996,0.03,230.86,230.84,0.64968512]
[1738181286188,0.03,230.86,230.85,34.71404046]